[Event "Moscow Tal Memorial 6th"]
[Site "Moscow"]
[Date "2011.11.18"]
[Round "3"]
[White "Kramnik, Vladimir"]
[Black "Carlsen, Magnus"]
[Result "1/2-1/2"]
[ECO "A20"]
[WhiteElo "2800"]
[BlackElo "2826"]
[Annotator "Ramirez Alvarez,Alejandro"]
[PlyCount "81"]
[EventDate "2011.11.16"]
[EventType "tourn"]
[EventRounds "9"]
[EventCountry "RUS"]
[EventCategory "22"]
[SourceTitle "CBM 146"]
[Source "ChessBase"]
[SourceDate "2012.01.18"]
[SourceVersion "1"]
[SourceVersionDate "2012.01.18"]
[SourceQuality "1"]
[TimeControl "6000+30"]

1. c4 e5 2. g3 Nf6 3. Bg2 h6 {This waiting move is not unknown. Black is waiting for White to define the positions of some of his pieces before defining his own.} 4. Nc3 Bb4 5. e4 Nc6 (5... Bxc3 {right away is far more popular, and has been the choice of several top-GMs. Magnus has a completely different idea.}) 6. Nge2 Bc5 {The bishop returns to c5 now that the dark squares have been weakened.} 7. d3 d6 8. h3 (8. O-O Bg4 {might be uncomfortable as another defender of the dark squares will be traded off.}) 8... Nh7 $5 {[%csl Rd4][%cal Gh7g5,Gg5e6,Rh7f8,Rf8e6,Re6d4] Already quite original play. Black is targeting the weakness left on h3 after an eventual 0-0, gaining a tempo in a long but useful manoeuvre. He also prepares a potential f5, though it does not happen in this game.} (8... O-O 9. O-O Be6 {was also perfectly possible.}) 9. a3 a6 10. O-O Ng5 11. Kh2 Ne6 {The  lands in e6, cementing the control over d4 and becoming quite useful overall.} 12. f4 Bd7 13. b4 Ba7 14. Nd5 Ned4 15. Nec3 {The position is very messy. White has more space everywhere but has a glaring weakness in d4. His king is safe for now, but the more he expands on the kingside the more vulnerable he becomes. Magnus tries to lure him into doing precisely that.} Be6 16. f5 Bd7 17. Rb1 Nb8 $5 {with the simple idea of playing c6. Black's pieces do seem awkward, but he has great control over the dark squares since he provoked f5.} 18. c5 (18. Qg4 Kf8 $1 {is very unclear. Notice how it is difficult for White to develop any sort of kingside initiative.}) 18... dxc5 19. bxc5 Bc8 {It seems like Black is playing completely aimlessly, but it's actually not so simple. If White's initiative doesn't take off NOW he will be pushed back in a few moves. The c5-pawn is quite vulnerable, his  on g2 is not participating in the game just yet and his structure is not great, not to mention he still has no control over d4. Kramnik MUST use these next few moves.} 20. Qh5 $146 (20. Qg4 $1 Kf8 {and again it is unclear why the  is on g4, however there is a subtle point this time around.} (20... g5 {is a much stronger move.} 21. Qh5 c6 $1 22. Bxg5 Qxg5 23. Nc7+ $1 (23. Qxg5 hxg5 24. Nc7+ Kd8 25. Nxa8 Bxc5 26. Nb6 Bxb6 27. Rxb6 Nb5 $1 {traps the rook on b6.}) 23... Ke7 $1 (23... Kd8 $2 24. Qxf7 Rg8 25. g4 {and the presence of the queens clearly favours White.}) 24. Qxg5+ hxg5 25. Nxa8 Bxc5 26. Na4 $44 {is plenty of compensation for Black because of his strong hold on the dark squares, but White is up the exchange.}) (20... g6 $2 21. Rxb7 h5 22. Qg5 Qxg5 (22... Bxb7 23. Nf6+ Ke7 24. fxg6 $18) 23. Nxc7+ Kd7 24. Nxa8+ Bxb7 25. Bxg5 Bxa8 26. fxg6 $18) 21. Qh5 Nd7 $2 (21... f6 22. Nxf6 $1 $18 Qxf6 (22... gxf6 23. Bxh6+ Rxh6 24. Qxh6+ Kg8 25. Nd5 Nd7 26. Qg6+ Kh8 27. Qh5+ Kg8 28. g4 {The idea of g5 is unstoppable, and the attack irresistible.} c6 29. g5 $1 {A great piece sacrifice to finish Black off quickly.} cxd5 30. exd5 Qf8 31. d6 $18 {and the passive bishop jumps into action with deadly consequences.}) 23. Nd5 Qf7 (23... Qd8 24. f6 {is clearly crushing.}) 24. Qxf7+ Kxf7 25. Nxc7 Bxc5 26. Nxa8 $18 {and the  should make it back. Black still has some dark square control but an exchange and a pawn is an exchange and a pawn.}) (21... Nbc6 22. f6 g6 23. Bxh6+ Ke8 24. Qxg6 {Anyways!} fxg6 25. f7+ Kd7 26. f8=Q Rxf8 27. Rxf8 Qxf8 28. Bxf8 Ne6 29. Rf1 $1 $16 {and White has an extra pawn; although his bishop on g2 is relatively out of play, Black's pieces aren't that great either. Black might have some compensation but White holds the advantage.}) (21... Bxc5 22. f6 g6 23. Qxe5 {[%csl Rc7,Rd4][%cal Ge5c7,Gc1e3,Ge3d4] is a big disadvantage of not being developed. With the centre being ripped open like this (Black will soon lose control over d4) his position becomes hopeless.}) 22. f6 {and now g6 is not possible since xh6 is check.} g6 23. Bxh6+ Ke8 {and now Black would be ok after g5 xc5, but the bombshell is...} 24. Qxg6 $1 {and White should be just winning.}) ({RR} 20. Qg4 Kf8 21. Qh5 Nbc6 22. Na4 f6 23. Bd2 Rb8 24. Nab6 Kg8 25. Nxc8 Rxc8 26. Rfc1 Rb8 27. h4 Qf8 28. Bh3 Bxc5 29. Rxc5 Qxc5 30. Nxf6+ gxf6 31. Qg6+ Kf8 32. Qxf6+ Ke8 33. Qxh8+ Qf8 34. Qxf8+ Kxf8 {Enkhnar,E (2438)-Shtyrenkov,V (2293) Alushta 2016 1-0 (42)}) 20... Nd7 21. Na4 (21. f6 $2 g6 {is just pointless now.}) (21. Bg5 Qxg5 22. Qxg5 hxg5 23. Nxc7+ Kd8 24. Nxa8 Bxc5 {gives Black a fantastic position for the sacrificed material. That is assuming that the  on a8 ever gets out without too many losses.}) 21... c6 $5 {The start of fantastic complications.} (21... Nf6 22. Qh4 Nxd5 23. Qxd8+ Kxd8 24. exd5 Bd7 $13 {looks quite good for Black, though White is not without chances in this position. Maybe a strange dynamic equality.}) 22. Ndb6 (22. Bg5 {was another possibility, but Black should come out on top after barely sacrificing the exchange.}) 22... Nxc5 {You could say this is the critical point: if White takes on a8 Magnus will take the  on a4 and it is hard to believe the a8- will ever be retrieved. Kramnik proves it is not as easy as that.} 23. f6 g5 {Forced.} 24. Bxg5 $5 (24. Nxc8 Qxc8 $8 25. Nxc5 Bxc5 26. h4 $5 {is very messy, but was probably better than the game continuation.} Rg8 (26... gxh4 $6 27. Qxe5+ Ne6 28. Bh3 hxg3+ 29. Kg2 {and it's hard to find a good move for Black.}) 27. Bh3 Ne6 28. Bb2 Bd6 {and White has a lot of play for his pawn. Notice how important it is to have activated the white squared bishop in these lines. That's why I think this idea of 24.xc8 and an eventual h4 is stronger.}) 24... Nxa4 25. Nxa8 (25. Nxa4 $6 b5 26. Nc3 Be6 {looks quite good for Black.}) 25... b5 26. Be3 Bb8 27. g4 {...with the idea of g5-g6. There are tons of possibilities for Black, let's look at some of them.} Rg8 $1 {Personally I think this move is best. It calmly gives away a pawn, but controls the important g6-square, which means Magnus doesn't have to worry about the kingside being blasted open any time soon.} (27... c5 $5 28. g5 Be6 29. g6 fxg6 30. Qxg6+ Bf7 31. Qg7 Rg8 32. Qxh6 Bd6 33. Bxd4 exd4+ 34. e5 Bxe5+ 35. Kh1 Rxg2 36. Kxg2 Qxa8+ 37. Kg1 $11 {With both kings so exposed, it is impossible to believe one side will win this. A perpetual is the most likely outcome.}) (27... Be6 {trying to immediately trap the  on a8, quick action must be taken.} 28. g5 Ba7 29. g6 Qxa8 30. g7 Rg8 31. Qxh6 $13 {Black will never rid himself of the strong passed pawns, but he dominates the rest of the board. I would prefer to be White but anything can happen.}) (27... Nc5 {bringing the  back into action!} 28. g5 Be6 29. g6 $2 (29. gxh6 $1 Nd7 30. Qg5 Nf8 {is again very difficult to asess.}) 29... fxg6 30. Qxg6+ Bf7 31. Qg7 Rg8 32. Qxh6 Nce6 $1 {and since the  is so active in this line, Black should be better. The centre is held nicely and the  on a8 is doomed.}) 28. Qxh6 Be6 29. Rbc1 Kd7 $1 {Protects the rook on g8, the pawn on c6, threatens ...xg4 and puts the  on a safer square!} 30. Bxd4 exd4+ 31. e5 Nc3 32. Rxc3 {Absolutely forced.} (32. Qf4 $2 Ba7 {and White is lost, as pointed out by Vlad during the postmortem.}) 32... Bxe5+ 33. Kh1 dxc3 34. Qe3 {Again, Black has options. 34...d6, d6 and the move played in the game all come to mind.} Qb8 (34... Bd6 35. Qa7+ (35. Nb6+ Kc7 36. Na4 $1 {a fantastic resource!} bxa4 $4 (36... Kb8 37. Nxc3 Bc7 {and White's square weaknesses are starting to tell, since Black's king is rather safe. The game is still complex though.}) 37. Qa7+ Kc8 38. Qa8+ Bb8 39. Qxa6+ Kd7 40. Qxc6#) 35... Ke8 36. Qxa6 Kf8 37. Qxc6 Rh8 {[%cal Gh8h1] looks dangerous for White.}) (34... Kd6 $5 {Getting away from potential checks on a7 and defending the bishop. However the king might be a little over exposed.} 35. d4 Bxf6 36. Qxc3 Ke7 37. Qxc6 Bxd4 38. Nc7 Qd7 39. Qxd7+ $11) 35. Qc5 $6 {Easy to attach a ?! when using an engine to analyse, but truth be told this move looks like the most obvious way to a draw.} (35. d4 $5 Bd6 36. d5 cxd5 37. Nb6+ Kd8 (37... Kc6 $2 38. Nxd5 Bxd5 39. Qxc3+ $18) 38. Nxd5 Bxd5 39. Bxd5 $13 {with a very murky position. Any queen trade will transpose the game into an opposite coloured bishop endgame in which the chances for a draw are high.}) 35... Qd6 36. Qa7+ Kd8 37. Qxa6 (37. Nb6 Rg6 {Black is simply threatening xf6, with a decisive advantage, so White has to do something quickly. It seems like he doesn't have enough resources.} 38. Qa8+ Qb8 39. Qxc6 Rxf6 40. Rxf6 Bxf6 41. Nd5 Bg7 $1 (41... Bd4 42. Nb4 $1 {The only fighting chance.} (42. Nxc3 $2 Qg3 $19 {and the attack is decisive.}) 42... Qb6 (42... Qg3 43. Qa8+ Ke7 $2 44. Nc6+ $18) 43. Qa8+ Ke7 44. Nc6+ Kd7 45. Nxd4 Qxd4 46. Qxa6 Qxd3 $15 {and Black's king is too vulnerable to try to win, but obviously he is the only one with chances.}) 42. Nxc3 Qe5 43. Qb6+ Qc7 {Forcing the exchange of queens.} 44. Qxc7+ Kxc7 {and Black is down a pawn, but he has dominating bishops and an active king, not to mention a soon to be passed pawn on the queenside. This looks very difficult to hold for White.}) 37... Bd4 $1 {A nice move, which cuts off the coordination between the  and the , as well as creating Black's own threats on the K-side.} 38. Qa5+ Kc8 39. Qa6+ Kd8 40. Qa5+ Kc8 41. Qa6+ {And... surprise! Magnus claims three-fold repetition in a position computers claim he is winning! A small explanation is required. A wild game and you cannot blame the players for being exhausted after so much calculation.} (41. Qa6+ Kb8 42. Nb6 {The problem is that in this situation neither of the players considered the move ...c8. It does seem quite strange, but it beautifully prevents all of White's counterplay, leaving Black with a dominating position.} Bc8 {Note that without this move, the game would simply end in a perpetual.} 43. Qa8+ (43. Nxc8 Rxc8 44. a4 b4 45. Qc4 Qc5 {and computers think Magnus is winning, but that's not so obvious at a first glance.}) 43... Kc7 44. Nxc8 (44. Qa7+ Bb7 {is the point} 45. Nd5+ Qxd5 {and Black wins.}) 44... Rxc8 45. Qa5+ Kb8 {White has now exhausted his resources. His position will collapse since he must now shift the focus on to protecting against the c-pawn.}) 1/2-1/2

[Event "Tata Steel-A 79th"]
[Site "Wijk aan Zee"]
[Date "2017.01.19"]
[Round "5"]
[White "Nepomniachtchi, Ian"]
[Black "Carlsen, Magnus"]
[Result "1/2-1/2"]
[ECO "A21"]
[WhiteElo "2767"]
[BlackElo "2840"]
[Annotator "ChessBase II"]
[PlyCount "55"]
[EventDate "2017.01.14"]
[EventType "tourn"]
[EventRounds "13"]
[EventCountry "NED"]
[EventCategory "21"]
[SourceTitle "CBM 177"]
[Source "ChessBase"]
[SourceDate "2017.03.16"]
[SourceVersion "1"]
[SourceVersionDate "2017.03.16"]
[SourceQuality "1"]
[TimeControl "40/6000+30:20/3000+30:900+30"]

1. c4 {[%emt 0:00:00]} e5 {[%emt 0:01:45]} 2. Nc3 {[%emt 0:01:16]} Bb4 {[%emt 0:01:02]} 3. Nd5 {[%emt 0:00:19]} Bc5 {[%emt 0:00:15]} 4. Nf3 {[%emt 0:00:28]} c6 {[%emt 0:00:38]} 5. Nc3 {[%emt 0:00:06]} d6 {[%emt 0:00:08]} 6. e3 {[%emt 0:00:25]} Qe7 {[%emt 0:00:58]} 7. d4 {[%emt 0:03:08]} exd4 {[%emt 0:07:11]} 8. Nxd4 {[%emt 0:00:12]} Nf6 {[%emt 0:00:03]} 9. Be2 {[%emt 0:00:26]} O-O {[%emt 0:00:12]} 10. O-O {[%emt 0:00:27]} d5 {[%emt 0:10:05]} ({RR} 10... a5 11. b3 Na6 12. Bb2 Re8 13. Re1 Bd7 14. Bd3 Rad8 15. a3 Bg4 16. Qd2 Bb6 17. h3 Bc8 18. Nf5 Qf8 19. Na4 Bc7 20. Bxf6 gxf6 21. Qe2 Bxf5 22. Bxf5 Nc5 23. Nc3 Qg7 24. b4 Ne6 25. Rad1 {Chasin,N (2458)-Geher,K (2265) Budapest HUN 2025 1-0 (63)}) 11. cxd5 {[%emt 0:08:04]} cxd5 {[%emt 0:00:02]} 12. Nb3 $146 {[%emt 0:06:00]} (12. b3 Nc6 13. Nxc6 bxc6 14. Bb2 Bd6 15. Bf3 Rd8 16. g3 Ba6 17. Re1 Rac8 18. Qc2 Be5 19. Rad1 h5 20. Ne2 h4 21. Nf4 hxg3 22. hxg3 Nd7 23. Kg2 Bxb2 24. Rh1 g5 25. Qxb2 Qe5 26. Qa3 gxf4 27. exf4 Qg7 28. Qxa6 Nf6 29. Rd2 Rc7 30. Qa5 Rcd7 31. Qc3 Rd6 32. Qe5 Re6 33. Qf5 Rde8 34. Rc2 Ne4 35. Rh4 Rg6 36. Rg4 Nd6 37. Rxg6 fxg6 38. Qd3 Rc8 39. Rxc6 {1-0 (39) Gurevich,M (2644)-Naiditsch,A (2611) Ajaccio 2004}) ({RR} 12. Bf3 Rd8 13. b3 Nc6 14. Nce2 Ne5 15. Bb2 Bd7 16. Rc1 Rac8 17. h3 Ba3 18. Rxc8 Rxc8 19. Qb1 Bxb2 20. Qxb2 Ne4 21. Nf4 Qc5 22. Be2 a5 23. Nd3 Nxd3 24. Bxd3 Qc3 25. Qe2 g6 26. Rd1 Nf6 {Howell,D (2676)-Sadler,M (2685) London 2017 ½-½ (35)}) ({RR} 12. b3 Nc6 13. Nxc6 bxc6 14. Bb2 Bd6 15. Rc1 Bd7 16. Bf3 Rfe8 17. Re1 h5 18. g3 Ng4 19. Rc2 Qg5 20. e4 h4 21. exd5 Nxh2 22. Ne4 Nxf3+ 23. Qxf3 Qg6 24. Rce2 Bf8 25. Qd3 hxg3 26. Qxg3 Qxg3+ {Jacobson,B (2503)-Ringoir,T (2500) Charlotte 2019 0-1 (52)}) 12... Bb4 {[%emt 0:12:52]} 13. Nxd5 {[%emt 0:16:00]} Nxd5 {[%emt 0:00:09]} 14. Qxd5 {[%emt 0:00:06]} Rd8 {[%emt 0:00:26]} 15. Qh5 {[%emt 0:03:31]} Nc6 {[%emt 0:01:46]} 16. a3 {[%emt 0:02:58]} Bd6 {[%emt 0:01:19]} 17. Nd4 {[%emt 0:01:40]} Be5 {[%emt 0:03:26]} 18. Nxc6 {[%emt 0:09:39]} bxc6 {[%emt 0:00:09]} 19. Bc4 {[%emt 0:01:04]} g6 {[%emt 0:01:24]} 20. Qe2 {[%emt 0:01:30]} Be6 {[%emt 0:03:56]} 21. Bxe6 {[%emt 0:05:09]} Qxe6 {[%emt 0:00:02]} 22. Rb1 {[%emt 0:01:42]} Rab8 {[%emt 0:08:07]} 23. b4 {[%emt 0:10:54]} c5 {[%emt 0:00:10]} 24. Bb2 {[%emt 0:00:48]} Qa2 {[%emt 0:00:17]} 25. Rfe1 {[%emt 0:00:16]} Bxb2 {[%emt 0:00:11]} 26. Qxb2 {[%emt 0:00:10]} Qxb2 {[%emt 0:00:05]} 27. Rxb2 {[%emt 0:00:07]} a5 {[%emt 0:08:22]} 28. Kf1 {[%emt 0:09:23]} 1/2-1/2